bitfinex/quotes_ETHUSD_20250603
["timestamp","ask_amount","ask_price","bid_price","bid_amount"]
[1748983872429,0.02,2611.9,2611.5,8.0]
[1748983873325,1.2937,2611.8,2611.3,8.0]
[1748983873539,1.2937,2611.8,2611.0,10.82650803]
[1748983874424,1.2937,2611.8,2611.1,8.0]
[1748983875226,1.2937,2611.8,2611.3,9.14050803]
[1748983875429,1.2937,2611.8,2611.3,10.38110803]
[1748983875641,0.02,2611.9,2611.7,8.0]
[1748983880130,0.02,2611.9,2611.4,8.0]
[1748983882964,0.02,2611.9,2611.7,8.0]
[1748983884837,0.02,2611.9,2611.4,8.0]
[1748983887377,1.2928,2611.8,2611.4,8.0]
[1748983888475,1.2928,2611.8,2611.0,1.686]
[1748983889677,0.02,2611.9,2610.6,0.38220678]
[1748983889863,0.55,2611.5,2610.1,12.04551368]
[1748983890087,1.3086,2611.0,2609.8,10.35951368]
[1748983890282,1.3086,2610.8,2609.8,9.51540951]
[1748983890605,1.3086,2610.8,2609.8,0.37490148]
[1748983890906,1.3086,2610.8,2609.6,1.687]
[1748983891073,1.3086,2610.8,2609.6,9.687]
[1748983891273,1.3086,2610.8,2609.6,10.63266987]
[1748983891568,1.3086,2610.8,2609.6,2.63266987]
[1748983891790,1.3086,2610.8,2609.7,8.0]
[1748983892467,1.2926,2610.6,2609.7,8.0]
[1748983892651,1.2926,2610.6,2609.6,1.687]
[1748983892857,1.2926,2610.6,2609.6,9.687]
[1748983893667,1.2926,2610.6,2609.6,10.0751378]
[1748983895992,1.2926,2610.6,2609.6,1.685]
[1748983897090,1.2926,2610.6,2609.8,9.14050803]
[1748983898505,1.2926,2610.6,2609.9,8.0]
[1748983899514,1.2926,2610.6,2610.1,9.14050803]
[1748983899721,1.2811,2611.7,2610.5,11.83068377]
[1748983899868,1.2811,2611.7,2610.9,9.14050803]
[1748983900512,1.2811,2611.7,2610.6,9.14050803]
[1748983905599,0.55,2611.6,2610.6,9.14050803]
[1748983905918,0.55,2611.7,2610.6,10.82550803]
[1748983906117,0.55,2611.5,2610.6,10.82550803]
[1748983906315,1.3514,2611.4,2610.6,10.82550803]
[1748983906526,0.55,2611.3,2610.1,9.14050803]
[1748983906679,1.3514,2611.2,2610.0,1.685]
[1748983906879,1.3514,2611.2,2610.1,9.14050803]
[1748983909224,1.3514,2611.2,2610.1,17.14050803]
[1748983910581,1.3514,2611.2,2610.7,9.14050803]
[1748983922450,1.3514,2611.2,2611.0,9.14050803]
[1748983922726,1.2742,2611.4,2611.0,9.14050803]
[1748983923225,1.2742,2611.4,2610.4,1.2565]
[1748983923424,1.2742,2611.4,2610.2,8.0]
[1748983923656,1.683,2611.6,2610.1,1.683]
[1748983923657,0.55,2611.1,2610.1,1.683]
[1748983923858,1.2742,2611.0,2610.1,10.82350803]
[1748983924162,1.2742,2611.0,2610.5,8.0]
[1748983926263,1.2742,2611.0,2610.1,18.82350803]
[1748983926562,1.2742,2611.0,2610.1,22.65475884]
[1748983926746,1.2742,2611.0,2610.1,18.82350803]
[1748983927742,1.2742,2611.0,2610.2,9.683]
[1748983928562,1.2742,2611.0,2610.5,8.0]
[1748983928724,1.2742,2611.0,2610.8,8.0]
[1748983929219,0.55,2611.7,2610.8,9.684]
[1748983929420,1.3258,2611.6,2610.8,9.684]
[1748983930030,1.3258,2611.6,2610.6,8.0]
[1748983930460,1.3258,2611.6,2610.6,9.684]
[1748983930669,0.55,2611.5,2610.3,8.0]
[1748983930964,0.55,2611.6,2610.6,1.684]
[1748983931124,0.55,2611.4,2610.6,1.684]
[1748983931326,1.3258,2611.6,2610.3,8.0]
[1748983931525,1.3258,2611.6,2610.4,1.684]
[1748983932419,1.3258,2611.4,2610.1,1.21900565]
[1748983932720,1.3258,2611.4,2610.0,1.684]
[1748983932922,1.3258,2611.1,2610.0,1.684]
[1748983933145,1.3258,2611.1,2610.0,9.684]
[1748983933567,1.3258,2611.1,2610.2,9.14050803]
[1748983933734,1.3258,2611.1,2610.3,8.0]
[1748983934348,1.3258,2611.1,2610.3,11.83093855]
[1748983934653,1.3258,2611.1,2610.5,8.0]
[1748983934872,1.3258,2611.1,2610.6,1.684]
[1748983937692,1.3258,2611.1,2610.5,17.14050803]
[1748983937894,1.3258,2611.1,2610.6,1.684]
[1748983939288,1.3258,2611.1,2610.5,17.14050803]
[1748983939497,1.3258,2611.1,2610.6,1.684]
[1748983941388,1.3258,2611.1,2610.5,8.0332089]
[1748983941599,1.3258,2611.1,2610.6,1.683]
[1748983942673,1.3258,2611.1,2610.2,1.21900565]
[1748983942876,1.3258,2611.1,2610.3,1.683]
[1748983943897,1.3258,2611.1,2610.6,8.0]
[1748983944707,1.3258,2611.1,2610.4,8.0]
[1748983944889,1.3258,2611.1,2610.4,1.684]
[1748983945267,1.3258,2611.1,2610.1,1.72900565]
[1748983945588,5.713,2611.8,2610.1,1.684]
[1748983945589,1.2498,2611.0,2610.1,1.684]
[1748983946124,11.0,2610.0,2609.9,17.14050803]
[1748983946268,11.0,2610.0,2609.9,18.82450803]
[1748983949775,11.0,2610.0,2609.9,25.17950803]
[1748983953019,11.0,2610.0,2609.9,32.84933445]
[1748983953312,11.0,2610.0,2609.9,25.17750803]
[1748983955489,11.0,2610.0,2609.9,23.49550803]
[1748983955718,11.0,2610.0,2609.9,25.17750803]
[1748983956896,10.87364068,2610.0,2609.9,32.35690845]
[1748983957094,10.25175461,2610.0,2609.9,29.00907245]
[1748983957593,10.25175461,2610.0,2609.9,29.00807245]
[1748983958114,10.25175461,2610.0,2609.9,25.17650803]
[1748983961233,10.25175461,2610.0,2609.9,20.43323872]
[1748983961615,10.25175461,2610.0,2609.9,24.26480314]
[1748983961839,10.25175461,2610.0,2609.9,20.43323872]
[1748983965203,10.25175461,2610.0,2609.9,4.36045218]
[1748983965398,10.25175461,2610.0,2609.9,6.04245218]
[1748983966580,10.25175461,2610.0,2609.9,6.07923872]
[1748983966850,10.25175461,2610.0,2609.9,12.43323872]
[1748983967400,10.25175461,2610.0,2609.9,23.32086314]
[1748983967703,9.62985554,2610.0,2609.9,18.78790879]
[1748983968716,9.62985554,2610.0,2609.9,25.48598851]
[1748983969045,9.62985554,2610.0,2609.9,20.81474979]
[1748983970140,9.62985554,2610.0,2609.9,11.53277469]
[1748983970339,9.62985554,2610.0,2609.9,15.36433911]
[1748983970638,9.62985554,2610.0,2609.9,16.33418086]
[1748983971340,9.62985554,2610.0,2609.9,30.68718086]
[1748983971847,9.62985554,2610.0,2609.9,31.57904344]
[1748983972051,9.62985554,2610.0,2609.9,30.68718086]
[1748983972426,9.62985554,2610.0,2609.9,28.66104186]
[1748983973254,9.62985554,2610.0,2609.9,28.70394186]
[1748983973452,9.62985554,2610.0,2609.9,17.95370314]
[1748983973751,9.62985554,2610.0,2609.9,24.30670314]
[1748983974162,9.62985554,2610.0,2609.9,32.91365386]
[1748983974870,6.97892266,2610.0,2609.9,32.91365386]
[1748983977939,6.35707271,2610.0,2609.9,32.91365386]
[1748983978134,1.3127,2610.8,2609.9,32.91365386]
[1748983978135,1.3127,2610.8,2610.4,3.83071492]
[1748983978462,1.3127,2610.8,2610.7,12.39723872]
[1748983978972,1.3009,2611.6,2610.7,12.39723872]
[1748983979172,1.3009,2611.6,2611.2,4.39723872]
[1748983979475,1.3009,2611.6,2611.0,10.74923872]
[1748983981580,1.3009,2611.6,2611.2,4.39723872]
[1748983982948,1.3009,2611.6,2611.4,4.39723872]
[1748983985256,1.3009,2611.6,2611.3,4.39723872]
[1748983986382,1.3009,2611.6,2611.1,1.68]
[1748983987460,1.3009,2611.6,2611.1,6.07723872]
[1748983987768,1.3009,2611.6,2611.3,4.39723872]
[1748983987972,1.3009,2611.6,2611.5,4.39723872]
[1748983988696,1.3198,2611.8,2611.5,4.39723872]
[1748983994701,1.3198,2611.8,2611.4,14.348]
[1748983994899,1.3198,2611.8,2611.5,4.39723872]
[1748983997260,1.3198,2611.8,2611.0,0.88353891]
[1748983997503,1.3198,2611.8,2611.1,8.028]
[1748983997708,1.3198,2611.8,2611.1,12.42523872]
[1748983998382,1.3198,2611.8,2611.2,8.0]
[1748983998968,1.3198,2611.8,2611.4,8.0]
[1748984003987,1.3198,2611.8,2611.2,8.0]
[1748984006236,1.3198,2611.8,2611.5,8.22645439]
[1748984006526,1.3198,2611.8,2611.5,8.22645215]
[1748984006729,0.02,2611.9,2611.8,8.0]
[1748984006900,0.02,2611.9,2611.8,11.82877708]
[1748984007302,0.02,2611.9,2611.8,8.0]
[1748984007839,1.2907,2611.9,2611.7,1.68]
[1748984008033,1.2907,2611.9,2611.8,8.0]
[1748984009388,0.02,2611.9,2611.8,11.82877708]
[1748984009911,0.02,2611.9,2611.8,12.02317708]
[1748984012243,0.02,2611.9,2611.8,8.0]
[1748984012538,0.02,2611.9,2611.8,11.82877708]
[1748984015144,1.3041,2612.8,2612.1,3.82826866]
[1748984015313,1.3041,2612.8,2612.4,4.39723872]
[1748984015508,1.3041,2612.8,2612.2,4.39723872]
[1748984016566,1.3041,2612.8,2612.3,8.1944]
[1748984016741,1.3041,2612.8,2612.7,12.39723872]
[1748984017345,0.02,2612.9,2612.7,12.39723872]
[1748984022867,0.02,2612.9,2612.7,9.677]
[1748984023069,0.02,2612.9,2612.7,8.37684195]
[1748984023939,0.02,2612.9,2612.8,12.39723872]
[1748984024358,0.02,2612.9,2612.8,22.66217441]
[1748984024668,0.02,2612.9,2612.8,18.04059672]
[1748984024868,0.02,2612.9,2612.8,12.39723872]
[1748984025502,0.02,2612.9,2612.8,3.91238956]
[1748984026584,0.02,2612.9,2612.8,11.93138956]
[1748984027096,0.02,2612.9,2612.8,15.75870125]
[1748984027392,0.02,2612.9,2612.8,15.95310125]
[1748984027546,0.02,2612.9,2612.8,30.73603997]
[1748984027747,2.62253188,2613.7,2613.1,3.82680936]
[1748984027953,2.62253188,2613.7,2613.2,4.39723872]
[1748984028147,2.88678507,2613.7,2613.2,4.39723872]
[1748984029554,2.62253188,2613.7,2613.2,4.39723872]
[1748984034226,2.62253188,2613.7,2613.2,8.22386934]
[1748984034431,2.62253188,2613.7,2613.4,4.39723872]
[1748984035437,1.26733188,2613.7,2613.4,6.07423872]
[1748984036321,1.26733188,2613.7,2613.4,1.677]
[1748984042443,1.26733188,2613.7,2613.4,6.07423872]
[1748984043280,1.26733188,2613.7,2613.4,1.677]
[1748984043445,1.3663,2613.6,2612.9,0.51]
[1748984044741,1.3663,2613.6,2613.2,4.39723872]
[1748984045181,1.3663,2613.6,2613.1,9.674]
[1748984045367,1.3663,2613.6,2613.1,1.674]
[1748984045565,1.3663,2613.6,2613.2,4.39723872]
[1748984050185,0.26336319,2613.5,2612.8,1.22185284]
[1748984050360,0.26336319,2613.5,2613.0,4.39723872]
[1748984054196,0.26336319,2613.5,2613.0,8.22420756]
[1748984054392,1.3663,2613.6,2613.2,4.39723872]
[1748984054770,1.26733188,2613.7,2613.4,4.39723872]
[1748984054976,1.26733188,2613.7,2613.6,4.39723872]
[1748984055177,1.26733188,2613.7,2613.6,16.3925789]
[1748984055505,1.26733188,2613.7,2613.6,23.6094239]
[1748984055733,1.26733188,2613.7,2613.6,19.78328372]
[1748984056001,1.2509075,2613.7,2613.6,23.6094239]
[1748984056353,0.6299277,2613.7,2613.6,23.6094239]
[1748984056594,0.6299277,2613.7,2613.6,24.4025789]
[1748984056793,0.6299277,2613.7,2613.6,16.3925789]
[1748984057009,0.6299277,2613.7,2613.6,24.4025789]
[1748984057205,0.6299277,2613.7,2613.6,25.62221252]
[1748984057405,0.6299277,2613.7,2613.6,33.53363252]
[1748984057574,0.6299277,2613.7,2613.6,32.3139989]
[1748984058770,1.3478,2614.8,2613.9,0.1692]
[1748984058972,1.3478,2614.8,2614.4,4.39723872]
[1748984059692,1.3478,2614.8,2614.3,1.674]
[1748984064427,1.3478,2614.8,2614.3,5.49910523]
[1748984064724,1.3478,2614.8,2614.6,4.39723872]
[1748984064931,0.02,2614.9,2614.7,3.82452822]
[1748984065085,0.02,2614.9,2614.8,12.39723872]
[1748984065727,0.02,2614.9,2614.8,17.05582337]
[1748984065899,0.02,2614.9,2614.8,16.39082299]
[1748984066231,0.02,2614.9,2614.8,17.07609238]
[1748984066430,0.02,2614.9,2614.8,23.40909238]
[1748984066587,0.02,2614.9,2614.8,14.5022]
[1748984066791,0.02,2614.9,2614.8,18.32658427]
[1748984068658,0.02,2614.9,2614.8,14.5022]
[1748984069449,0.02,2614.9,2614.8,18.32658427]
[1748984072767,0.02,2614.9,2614.8,8.1692]
[1748984072932,0.02,2614.9,2614.8,14.331]
[1748984073856,0.02,2614.9,2614.8,18.15538427]
[1748984074856,0.02,2614.9,2614.8,8.0]
[1748984075060,0.02,2614.9,2614.8,18.15438427]
[1748984075357,0.02,2614.9,2614.8,8.89186258]
[1748984075523,0.02,2614.9,2614.8,16.001]
[1748984075727,0.02,2614.9,2614.8,19.82538427]
[1748984078114,0.02,2614.9,2614.8,16.001]
[1748984079009,0.02,2614.9,2614.8,19.82538427]
[1748984081456,0.02,2614.9,2614.8,16.001]
[1748984081633,0.02,2614.9,2614.8,19.82538427]
[1748984082673,0.02,2614.9,2614.8,16.001]
[1748984083859,0.02,2614.9,2614.8,9.671]
[1748984089967,0.02,2614.9,2614.8,8.0]
[1748984090161,0.02,2614.9,2614.8,9.671]
[1748984091590,0.02,2614.9,2614.8,1.671]
[1748984093568,0.02,2614.9,2614.8,9.671]
[1748984094340,0.02,2614.9,2614.8,13.49538427]
[1748984094639,0.02,2614.9,2614.8,18.91397656]
[1748984095072,0.02,2614.9,2614.8,10.88982629]
[1748984095250,0.02,2614.9,2614.8,9.671]
[1748984096075,0.02,2614.9,2614.8,15.998]
[1748984096865,0.02,2614.9,2614.8,8.0]
[1748984097043,0.02,2614.9,2614.8,9.671]
[1748984099279,0.02,2614.9,2614.8,1.671]
[1748984102352,0.02,2614.9,2614.7,0.51]
[1748984102552,0.02,2614.9,2614.8,1.671]
[1748984103254,0.02,2614.9,2614.7,0.51]
[1748984103255,1.3268,2614.8,2614.7,0.51]
[1748984103573,1.3268,2614.8,2614.2,1.671]
[1748984103753,1.3268,2614.5,2613.7,2.88782629]
[1748984104195,1.3268,2614.5,2613.7,9.669]
[1748984105161,1.3268,2614.5,2613.7,10.179]
[1748984105580,1.3268,2614.5,2613.7,10.5561855]
[1748984105910,1.3268,2614.5,2613.8,4.39723872]
[1748984106111,1.3268,2614.5,2614.0,12.39723872]
[1748984108934,1.3268,2614.5,2614.0,14.326]
[1748984109099,1.3268,2614.5,2614.0,1.669]
[1748984112404,1.3268,2614.5,2614.1,8.0]
[1748984116142,1.3268,2614.5,2613.7,4.71310008]
[1748984116143,4.39723872,2614.5,2613.9,1.669]
[1748984116328,1.3817,2614.3,2613.9,1.669]
[1748984117109,1.3817,2614.3,2613.7,0.8871855]
[1748984117312,1.3817,2614.3,2613.8,1.669]
[1748984121350,4.39723872,2613.9,2613.6,0.51]
[1748984121509,1.669,2614.7,2612.6,0.31678268]
[1748984121510,1.3203,2613.6,2613.1,1.669]
[1748984121711,1.3203,2613.3,2613.1,1.669]
[1748984129377,1.2616,2614.1,2613.1,6.44632817]
[1748984130358,1.3811,2613.9,2613.1,6.44632817]
[1748984131060,1.3811,2613.9,2613.1,6.50752817]
[1748984132504,1.3811,2613.9,2613.3,4.39723872]
[1748984132916,1.3811,2613.9,2613.2,6.326]
[1748984132917,1.3811,2613.9,2613.2,14.326]
[1748984138020,1.3811,2613.9,2613.3,1.667]
[1748984139226,1.3811,2613.9,2613.3,7.992]
[1748984141413,1.3811,2613.9,2613.3,1.667]
[1748984141611,1.3811,2613.9,2613.3,7.992]
[1748984151679,1.3811,2613.9,2613.4,1.667]
[1748984156391,1.3811,2613.9,2613.5,1.667]
[1748984158995,1.3299,2614.8,2613.8,14.39723872]
[1748984159182,1.3299,2614.8,2614.0,4.39723872]
[1748984159382,1.3299,2614.8,2614.1,1.667]
[1748984160270,1.2576,2614.7,2614.1,1.667]
[1748984160495,1.2576,2614.5,2614.2,1.667]
[1748984162694,1.2576,2614.5,2613.7,6.832]
[1748984162877,1.2576,2614.5,2614.2,1.667]
[1748984164893,0.56548387,2614.6,2613.9,1.665]
[1748984164894,4.39723872,2614.4,2613.9,1.665]
[1748984165106,1.3633,2614.0,2613.3,1.665]
[1748984165266,0.55,2614.5,2613.3,1.665]
[1748984165267,1.3633,2613.8,2613.3,1.665]
[1748984166113,4.97329259,2613.9,2613.1,2.03828694]
[1748984166114,1.3633,2613.6,2613.1,2.03828694]
[1748984168722,1.3633,2613.6,2613.1,1.665]
[1748984170073,1.3633,2613.6,2613.0,9.665]
[1748984170726,1.3633,2613.6,2613.0,10.04325727]
[1748984173440,1.3633,2613.6,2613.4,4.39723872]
[1748984173664,1.2499,2613.8,2613.4,4.39723872]
[1748984173799,1.2499,2613.8,2613.3,6.32]
[1748984174004,1.2499,2613.8,2613.4,8.0]
[1748984174205,1.2499,2613.8,2613.4,12.39723872]
[1748984175537,1.2499,2613.8,2613.4,8.0]
[1748984179583,1.3481,2614.5,2613.7,4.39723872]
[1748984179787,1.3481,2614.5,2613.8,1.665]
[1748984180423,1.3481,2614.5,2613.8,9.665]
[1748984184629,1.3481,2614.5,2613.8,1.665]
[1748984185536,1.3481,2614.5,2613.9,1.665]
[1748984186247,1.3481,2614.5,2614.0,1.665]
[1748984188239,4.39723872,2614.1,2613.2,1.72882629]
[1748984188452,1.3332,2613.9,2613.5,1.665]
[1748984189970,4.39723872,2614.5,2613.5,1.665]
[1748984190128,1.3806,2614.4,2613.5,5.49128428]
[1748984190949,1.3806,2614.4,2613.5,1.665]
[1748984191555,1.3806,2614.4,2613.5,5.4912266]
[1748984191755,1.3806,2614.4,2613.6,4.39723872]
[1748984192515,5.73543872,2614.3,2613.5,1.665]
[1748984192716,1.3382,2614.2,2613.5,1.665]
[1748984193830,1.3382,2614.2,2613.3,0.0952]
[1748984194165,1.4177,2614.0,2613.4,1.665]
[1748984196618,1.4177,2614.0,2613.4,6.06223872]
[1748984197762,1.4177,2614.0,2613.5,8.0]
[1748984199760,1.4177,2614.0,2613.4,1.665]
[1748984200061,1.4177,2614.0,2613.5,1.662]
[1748984200262,1.2971,2613.8,2613.5,1.662]
[1748984204859,1.2971,2613.8,2613.0,20.31032228]
[1748984204860,1.2971,2613.8,2613.3,1.663]
[1748984212206,1.2971,2613.8,2613.0,0.39094035]
[1748984212350,1.2971,2613.8,2613.1,1.663]
[1748984219022,1.2971,2613.8,2613.2,4.39723872]
[1748984220172,1.2971,2613.8,2613.4,4.39723872]
[1748984220488,1.3727,2614.0,2613.4,14.39723872]
[1748984221206,1.3727,2614.0,2613.4,15.61606501]
[1748984221407,1.3727,2614.0,2613.4,14.39723872]
[1748984221587,1.3727,2614.0,2613.4,4.39723872]
[1748984221788,1.3727,2614.0,2613.3,1.21882629]
[1748984221985,1.3727,2614.0,2613.1,1.21882629]
[1748984222217,1.3727,2614.0,2613.2,1.663]
[1748984222397,1.3866,2613.8,2613.2,1.663]
[1748984224295,1.3866,2613.8,2613.3,1.663]
[1748984225516,1.3866,2613.8,2612.9,10.0]
[1748984225810,1.3866,2613.8,2613.0,1.66]
[1748984226922,1.3866,2613.8,2613.1,0.21504192]
[1748984227135,1.3599,2613.6,2613.0,1.66]
[1748984227283,1.3599,2613.6,2613.1,0.21503719]
[1748984227483,1.3599,2613.6,2613.0,1.66]
[1748984231191,1.3599,2613.6,2612.8,8.37559582]
[1748984231448,1.3599,2613.6,2613.1,1.66]
[1748984231608,0.19959833,2613.5,2613.1,1.66]
[1748984231950,1.3955,2613.4,2613.1,1.66]
[1748984232162,1.3955,2613.4,2612.8,8.37559582]
[1748984232435,0.19959833,2613.5,2612.5,2.04101317]
[1748984232436,1.3955,2613.2,2612.5,2.04101317]
[1748984232637,1.3955,2613.0,2612.5,2.04101317]
[1748984233694,1.3955,2613.0,2612.5,1.66]
[1748984234527,1.3955,2613.0,2612.5,2.0353555]
[1748984235040,1.3955,2613.0,2612.5,1.66]
[1748984236641,1.3955,2613.0,2612.5,2.03616954]
[1748984237265,1.3955,2613.0,2612.5,1.66]
[1748984237760,1.3955,2613.0,2612.7,4.39723872]
[1748984237963,1.3955,2613.0,2612.5,1.66]
[1748984237964,1.2805,2613.4,2612.5,1.66]
[1748984238164,1.3712,2613.3,2612.5,7.972]
[1748984239780,1.3399,2613.3,2612.5,7.972]
[1748984239932,1.3399,2613.3,2612.5,1.66]
[1748984240268,1.3399,2613.1,2612.5,1.66]
[1748984240470,0.57371387,2613.0,2612.5,1.66]
[1748984240766,1.3399,2612.9,2612.5,1.66]
[1748984244553,1.3399,2612.9,2612.4,10.2915698]
[1748984246301,1.3399,2612.9,2612.4,14.68880852]
[1748984248589,1.3399,2612.9,2612.4,10.2915698]
[1748984250569,1.3399,2612.9,2612.4,14.68880852]
[1748984251256,1.3399,2612.9,2612.4,10.2915698]
[1748984252854,1.3399,2612.9,2612.4,2.0335698]
[1748984253889,1.3399,2612.9,2612.4,1.66]
[1748984254704,4.39723872,2613.2,2612.1,0.02]
[1748984254705,4.39723872,2612.6,2612.1,0.02]
[1748984254899,1.3947,2612.4,2612.1,0.02]
[1748984261062,1.3947,2612.4,2612.2,1.658]
[1748984262802,1.3947,2612.4,2612.1,1.678]
[1748984263002,1.3947,2612.4,2612.1,0.02]
[1748984269395,1.3947,2612.4,2612.2,1.658]
[1748984274381,1.3205,2613.0,2612.2,1.658]
[1748984274580,1.3205,2612.8,2612.2,1.658]
[1748984276592,1.3205,2612.8,2612.2,6.05523872]
[1748984280070,1.3205,2612.8,2612.4,4.39723872]
[1748984280268,1.2792,2613.4,2612.4,4.39723872]
[1748984281619,1.2792,2613.4,2612.4,14.39723872]
[1748984282436,1.2792,2613.4,2612.4,4.39723872]
[1748984283800,1.2792,2613.4,2612.4,3.24723872]
[1748984285228,1.2792,2613.4,2612.4,13.24723872]
[1748984286911,1.2792,2613.4,2612.4,7.07512181]
[1748984287210,1.2792,2613.4,2612.4,3.24723872]
[1748984287904,1.2792,2613.4,2612.4,7.07512585]
[1748984288906,1.2792,2613.4,2612.3,1.22100442]
[1748984289106,1.2792,2613.4,2612.8,4.39723872]
[1748984289306,1.2792,2613.4,2613.2,4.39723872]
[1748984289617,1.2933,2613.8,2613.3,1.656]
[1748984289816,1.2933,2613.8,2613.4,1.656]
[1748984290205,0.02,2613.9,2613.4,9.87955732]
[1748984290409,0.02,2613.9,2613.4,6.05323872]
[1748984292222,0.02,2613.9,2613.5,3.82628658]
[1748984293114,0.02,2613.9,2613.4,6.05323872]
[1748984293277,0.02,2613.9,2613.5,8.0]
[1748984294032,0.02,2613.9,2613.5,8.38708813]
[1748984294913,0.02,2613.9,2613.5,12.21330253]
[1748984298232,0.02,2613.9,2613.7,3.82587573]
[1748984298436,0.02,2613.9,2613.6,14.52632034]
[1748984299733,0.02,2613.9,2613.7,10.0]
[1748984300911,0.02,2613.9,2613.6,10.12906698]
[1748984301492,0.02,2613.9,2613.6,6.303]
[1748984301696,0.02,2613.9,2613.7,10.0]
[1748984302111,0.02,2613.9,2613.8,21.82584742]
[1748984302456,1.3972,2614.8,2614.2,10.0]
[1748984302601,1.3972,2614.8,2614.4,10.0]
[1748984303034,1.3972,2614.8,2614.4,18.22220277]
[1748984303215,0.02,2614.9,2614.6,8.22190396]
[1748984303424,0.02,2614.9,2614.6,4.39723872]
[1748984303796,0.02,2614.9,2614.4,14.52413778]
[1748984304040,0.02,2614.9,2614.5,10.0]
[1748984307717,0.02,2614.9,2614.5,6.3]
[1748984307940,0.02,2614.9,2614.5,16.3]
[1748984315095,1.3358,2614.8,2614.6,1.654]
[1748984315236,1.3358,2614.8,2614.2,0.51]
[1748984315888,1.3358,2614.8,2614.3,1.654]
[1748984316072,1.72618684,2614.8,2614.3,1.654]
[1748984316394,1.4279,2614.7,2614.3,1.654]
[1748984324158,1.4279,2614.7,2614.3,1.652]
[1748984324159,1.3645,2614.6,2614.3,1.652]
[1748984326787,1.3424,2614.9,2614.4,6.10369285]
[1748984327097,1.3424,2614.9,2614.5,13.82480504]
[1748984327297,0.02,2614.9,2614.5,4.39723872]
[1748984327473,0.02,2614.9,2614.5,8.22198168]
[1748984327884,0.02,2614.9,2614.5,10.0]
[1748984328070,0.02,2614.9,2614.4,8.0]
[1748984330357,0.02,2614.9,2614.5,1.652]
[1748984330676,1.4062,2614.8,2614.3,1.22100442]
[1748984330890,1.4062,2614.6,2614.2,1.652]
[1748984332108,1.4062,2614.6,2614.2,11.652]
[1748984335126,1.4062,2614.6,2614.2,1.652]
[1748984335453,1.4062,2614.6,2614.3,1.652]
[1748984342390,1.4062,2614.6,2614.0,9.47500442]
[1748984342699,1.4062,2614.6,2614.1,1.652]
[1748984349433,1.4062,2614.6,2614.1,9.652]
[1748984349846,1.4062,2614.6,2614.2,1.65]
[1748984352152,1.3312,2614.8,2614.2,6.04723872]
[1748984352351,1.3312,2614.8,2614.2,9.87236293]
[1748984352658,1.3312,2614.8,2614.3,3.82511177]
[1748984353530,1.3312,2614.8,2614.2,9.87241678]
[1748984353742,1.3312,2614.8,2614.3,10.0]
[1748984353910,1.3312,2614.8,2614.2,1.65]
[1748984354459,1.3312,2614.8,2614.3,1.65]
[1748984354812,1.3837,2614.6,2614.3,1.65]
[1748984355072,1.96179387,2614.6,2614.3,1.65]
[1748984355669,1.3837,2614.6,2614.3,1.65]
[1748984363712,1.3173,2614.4,2614.0,1.65]
[1748984363908,1.3173,2614.2,2614.0,1.65]
[1748984367650,1.3173,2614.2,2613.9,1.65]
[1748984368388,0.02,2614.9,2613.5,8.64108813]
[1748984368389,5.77213872,2614.1,2613.7,1.65]
[1748984368592,0.57721387,2614.0,2613.7,1.65]
[1748984369259,1.3749,2614.1,2613.7,1.65]
[1748984381520,1.3749,2614.1,2613.7,1.648]
[1748984390695,5.77213872,2614.1,2613.5,8.63277832]
[1748984390960,1.2503,2613.8,2613.2,1.648]
[1748984391395,1.2503,2613.8,2613.2,2.03609015]
[1748984391602,1.2503,2614.4,2613.3,8.22381357]
[1748984391846,1.2503,2614.4,2613.3,9.44523024]
[1748984392241,1.2503,2614.4,2613.4,5.0478234]
[1748984393299,1.2503,2614.4,2613.5,1.22141667]
[1748984393496,0.56475387,2614.3,2613.5,1.22141667]
[1748984394039,1.2503,2614.2,2613.4,5.0478234]
[1748984395042,1.2503,2614.2,2613.5,1.22141667]
[1748984395861,1.2503,2614.2,2613.6,3.82605467]
[1748984396039,1.2503,2614.2,2613.6,13.04748453]
[1748984396238,1.2503,2614.2,2613.7,0.89186258]
[1748984396412,1.2503,2614.2,2613.8,1.648]
[1748984401961,1.3087,2614.4,2613.8,1.648]
[1748984403689,1.3087,2614.4,2613.9,1.648]
[1748984403884,1.3535,2614.0,2613.5,3.37941667]
[1748984404181,1.3535,2614.0,2613.5,2.158]
[1748984404342,1.3535,2614.0,2613.5,1.648]
[1748984410378,1.3535,2614.0,2613.6,1.648]
[1748984412896,5.64723872,2613.7,2613.2,1.73141667]
[1748984413080,1.25,2613.3,2612.9,1.645]
[1748984413465,4.39723872,2614.2,2613.2,13.82666346]
[1748984413662,1.3104,2614.1,2613.2,3.82666346]
[1748984413861,1.3104,2614.1,2613.2,10.0]
[1748984415865,1.3104,2614.1,2613.1,11.33527639]
[1748984416305,1.3104,2614.1,2613.3,3.82650828]
[1748984416605,1.3104,2614.1,2613.4,3.82632776]
[1748984416776,1.3104,2614.1,2613.5,1.645]
[1748984419175,1.3104,2614.1,2613.6,1.645]
[1748984424321,0.02,2614.9,2613.7,3.82589384]
[1748984424322,1.3161,2614.6,2613.7,3.82589384]
[1748984426718,1.3161,2614.6,2613.8,12.39723872]
[1748984426882,1.3161,2614.6,2613.9,8.0]
[1748984427339,1.3161,2614.6,2613.9,11.82568402]
[1748984427991,1.3161,2614.6,2613.7,11.82593544]